fUST/lending_fUST_20240521
["ID","MTS","AMOUNT","RATE_DAILY","PERIOD"]
[327629694,1716257452444,-500.0,0.00054794,41]
[327629695,1716257452454,-500.0,0.00054794,42]
[327629696,1716257452463,-596.18163903,0.00054794,43]
[327629697,1716257452472,-500.0,0.00054794,120]
[327629698,1716257452486,-500.97,0.00054794,40]
[327629699,1716257452495,-500.97,0.00054794,41]
[327629700,1716257452523,-500.97,0.00054794,42]
[327629701,1716257452533,-500.97,0.00054794,43]
[327629702,1716257452542,-500.97,0.00054794,44]
[327629703,1716257452551,-500.97,0.00054794,45]
[327629704,1716257452560,-500.97,0.00054794,46]
[327629705,1716257452569,-500.97,0.00054794,47]
[327629706,1716257452578,-500.97,0.00054794,48]
[327629707,1716257452588,-500.97,0.00054794,49]
[327629708,1716257452597,-500.97,0.00054794,120]
[327629709,1716257452606,-500.97,0.00054794,120]
[327629710,1716257452615,-500.97,0.00054794,120]
[327629711,1716257452624,-500.97,0.00054794,120]
[327629712,1716257452634,-500.97,0.00054794,120]
[327629713,1716257452643,-500.97,0.00054794,120]
[327629714,1716257452652,-500.97,0.00054794,120]
[327629715,1716257452662,-500.97,0.00054794,120]
[327629716,1716257452671,-500.97,0.00054794,120]
[327629717,1716257452681,-500.97,0.00054794,120]
[327629718,1716257452690,-500.97,0.00054794,120]
[327629719,1716257452700,-500.97,0.00054794,120]
[327629720,1716257452710,-500.97,0.00054794,120]
[327629721,1716257452719,-501.04891579,0.00054794,120]
[327629722,1716257452729,-500.0,0.00054794,120]
[327629723,1716257452739,-513.21102327,0.00054794,120]
[327629724,1716257452749,-250.0,0.00054794,30]
[327629725,1716257452758,-500.0,0.00054794,31]
[327629726,1716257452767,-208.15589592,0.00054794,32]
[327629727,1716257452776,-481.8727327,0.00054795,120]
[327629728,1716257452786,-481.8727327,0.00054795,120]
[327629729,1716257452796,-481.8727327,0.00054795,120]
[327629730,1716257452805,-481.8727327,0.00054795,120]
[327629731,1716257452816,-481.8727327,0.00054795,120]
[327629732,1716257452825,-481.8727327,0.00054795,120]
[327629733,1716257452835,-481.8727327,0.00054795,120]
[327629734,1716257452844,-481.8727327,0.00054795,120]
[327629735,1716257452854,-481.8727327,0.00054795,120]
[327629736,1716257452863,-481.8727327,0.00054795,120]
[327629737,1716257452873,-481.8727327,0.00054795,120]
[327629738,1716257452885,-481.8727327,0.00054795,120]
[327629739,1716257452897,-481.8727327,0.00054795,120]
[327629740,1716257452907,-481.8727327,0.00054795,120]
[327629741,1716257452916,-481.8727327,0.00054795,120]
[327629742,1716257452927,-481.8727327,0.00054795,120]
[327629743,1716257452936,-481.8727327,0.00054795,120]
[327629744,1716257452946,-481.8727327,0.00054795,120]
[327629745,1716257452955,-481.8727327,0.00054795,120]
[327629746,1716257452965,-482.37,0.00054795,120]
[327629747,1716257452975,-158.70908784,0.00054795,120]
[327629748,1716257452986,-158.70908784,0.00054795,120]
[327629749,1716257452996,-158.70908784,0.00054795,120]
[327629750,1716257453005,-158.70908784,0.00054795,120]
[327629751,1716257453015,-158.70908784,0.00054795,120]
[327629752,1716257453023,-158.70908784,0.00054795,120]
[327629753,1716257453033,-158.70908784,0.00054795,120]
[327629754,1716257453042,-158.70908784,0.00054795,120]
[327629755,1716257453051,-158.70908784,0.00054795,120]
[327629756,1716257453061,-159.2,0.00054795,120]
[327629757,1716257453071,-1328.0,0.00055,120]
[327629758,1716257453080,-1998.21753798,0.00055,120]
[327629759,1716257453089,-13739.39523446,0.00055,30]
[327629760,1716257453099,-1000.0,0.00055,55]
[327629761,1716257453108,-255.39249103,0.00055,120]
[327629762,1716257453118,-2260.80777895,0.00055,120]
[327629763,1716257453127,-151.0,0.00055562,120]
[327629764,1716257453136,-10000.0,0.00055666,120]
[327629765,1716257453146,-1000.0,0.00056,120]
[327629766,1716257453155,-7501.92578649,0.0005608,120]
[327629767,1716257453164,-151.0,0.00056521,120]
[327629768,1716257453173,-240.0,0.000566,120]
[327629769,1716257453183,-10000.0,0.00056666,120]
[327629770,1716257453192,-1000.0,0.00057,57]
[327629771,1716257453201,-1770.83186295,0.00057,120]
[327629772,1716257453211,-151.0,0.00057479,120]
[327629773,1716257453220,-500.0,0.00057534,120]
[327629774,1716257453232,-10000.0,0.00057666,120]
[327629775,1716257453241,-2329.99223941,0.00058,120]
[327629776,1716257453250,-151.0,0.00058438,120]
[327629777,1716257453259,-151.0,0.00058438,120]
[327629778,1716257453269,-10000.0,0.00058666,120]
[327629779,1716257453278,-608.72565557,0.0005888,30]
[327629780,1716257453288,-668.96961688,0.000589,120]
[327629781,1716257453298,-1000.0,0.00059,59]
[327629782,1716257453307,-151.0,0.00059397,120]
[327629783,1716257453318,-5000.0,0.000595,30]
[327629784,1716257453327,-52359.34489694,0.000598,30]
[327629785,1716257453337,-151.0,0.000598,120]
[327629786,1716257453346,-151.0,0.000598,120]
[327629787,1716257453355,-151.0,0.000598,120]
[327629788,1716257453364,-151.0,0.000598,120]
[327629789,1716257453373,-1927.56593078,0.00059939,120]
[327629790,1716257453383,-317.49317568,0.00059939,120]
[327629791,1716257453392,-237.868146,0.00059942,2]
[327629792,1716257453401,-201.0,0.0005997,35]
[327629793,1716257453410,-150.5,0.0005997,35]
[327629794,1716257453419,-219.46,0.0005997,35]
[327629795,1716257453429,-150.5,0.0005997,15]
[327629796,1716257453438,-211.92,0.0005998,35]
[327629797,1716257453448,-150.5,0.0005998,35]
[327629798,1716257453458,-201.0,0.0005998,35]
[327629799,1716257453467,-150.5,0.0005998,35]
[327629800,1716257453476,-150.5,0.0005998,15]
[327629801,1716257453487,-300.47,0.0005998,35]
[327629802,1716257453497,-208.0,0.0005999,35]
[327629803,1716257453507,-150.5,0.0005999,35]
[327629804,1716257453516,-201.0,0.0005999,35]
[327629805,1716257453526,-150.5,0.0005999,35]
[327629806,1716257453535,-150.5,0.0005999,15]
[327629807,1716257453544,-150.5,0.0005999,35]
[327629808,1716257453554,-2000.0,0.0006,40]
[327629809,1716257453563,-160.0,0.0006,60]
[327629810,1716257453573,-1009.02209209,0.0006,120]
[327629811,1716257453582,-1000.0,0.0006,120]
[327629812,1716257453592,-859.76864034,0.0006,2]
[327629813,1716257453601,-1998.24652488,0.0006,120]
[327629814,1716257453610,-100044.31719552,0.0006,120]
[327629815,1716257453620,-179525.90867121,0.0006,120]
[327629816,1716257453694,-155.0,0.000165,2]
[327629817,1716257453704,-1151.33496091,0.00019999,2]
[327629818,1716257453713,-5211.26503909,0.0006,120]
[327629819,1716257453732,-162.560857,0.00020909,2]
[327629820,1716257453742,-153.15040145,0.0006,120]
[327629821,1716257481326,3207.45060764,9.999e-05,2]
[327629832,1716257919167,154.86062544,0.00016,2]
[327629833,1716257995766,285.83068385,0.00016,2]
[327629834,1716258001205,155.0,0.00016,2]
[327629835,1716258013735,285.83068385,0.00016,2]
[327629836,1716258015193,155.0,0.00016,2]
[327629837,1716258031736,264.66585674,0.00016,2]
[327629838,1716258035182,155.0,0.00016,2]
[327629839,1716258051179,229.273398,0.00016,2]
[327629843,1716258107768,1717.62384614,9.999e-05,2]
[327629844,1716258149390,550.85396294,9.999e-05,2]
[327629845,1716258171885,1151.33496091,9.999e-05,2]
[327629904,1716258558802,8183.10242518,0.00015922,2]
[327629942,1716258635210,-576.58072311,0.00016017,2]
[327629943,1716258635223,-826.65721377,0.00016017,2]
[327629944,1716258635237,-314.38590926,0.00016017,2]
[327629945,1716258635246,-200.47019815,0.00016018,2]
[327630004,1716258639472,-950.86476276,0.00016018,2]
[327630005,1716258639483,-44.1008372,0.00016019,2]
[327630008,1716258639497,-9357.45743067,0.00016019,2]
[327630010,1716258639507,-2115.17001779,0.0001602,2]
[327630012,1716258639517,-550.85396294,0.0001602,2]
[327630014,1716258639527,-154.94108946,0.0001606,2]
[327630015,1716258639537,-155.0,0.000165,2]
[327630016,1716258639547,-24900.0,0.00017892,2]
[327630017,1716258639556,-1121.52571873,0.000189,2]
[327630018,1716258639567,-162.560857,0.00019,2]
[327630019,1716258639577,-7415.23889232,0.0002,2]
[327630020,1716258639587,-816.67685406,0.00020908,2]
[327630053,1716258643356,-637.39155096,0.00020908,2]
[327630055,1716258643366,-236.63640463,0.00020912,2]
[327630057,1716258643375,-187.1961905,0.00024,2]
[327630058,1716258643385,-171.096427,0.00024384,2]
[327630060,1716258643395,-886.58083051,0.0003,4]
[327630061,1716258643404,-171.096427,0.0003031,2]
[327630062,1716258643413,-4222.72220066,0.00035,2]
[327630063,1716258643422,-211.51452656,0.00035,4]
[327630064,1716258643431,-171.096427,0.00036236,2]
[327630065,1716258643440,-1708.21899577,0.00037,2]
[327630066,1716258643450,-196.37694406,0.000379,2]
[327630067,1716258643459,-1333.20001333,0.00038,7]
[327630068,1716258643468,-247.05293977,0.0004,4]
[327630069,1716258643477,-860.26231661,0.0004028,11]
[327630095,1716258647244,-719.48635081,0.00020913,2]
[327630096,1716258647256,-1919.36685866,0.00020913,2]
[327630100,1716258676880,305.37736198,0.00016,2]
[327630106,1716259016905,909.92037244,9.999e-05,2]
[327630109,1716259307976,1717.62384614,9.999e-05,2]
[327630110,1716259362977,550.85396294,9.999e-05,2]
[327630111,1716259434052,1151.33496091,9.999e-05,2]
[327630150,1716259768822,155.0,9.999e-05,2]
[327630199,1716259834034,-1007.88974121,0.00016494,2]
[327630250,1716259840209,-709.73410493,0.00016494,2]
[327630251,1716259840219,-108.73223532,0.00016495,2]
[327630254,1716259840231,-258.89243828,0.00016495,2]
[327630256,1716259840244,-183.22928934,0.00016495,2]
[327630257,1716259840253,-155.0,0.000165,2]
[327630258,1716259840263,-174.0194444,0.00018336,2]
[327630259,1716259840272,-155.03825942,0.00018433,2]
[327630260,1716259840282,-122.75733248,0.00018433,2]
[327630285,1716259843907,-322.61980442,0.00018433,2]
[327630287,1716259843917,-155.03970033,0.00018433,2]
[327630289,1716259843928,-155.00775523,0.00018433,2]
[327630291,1716259843937,-155.01758303,0.00018434,2]
[327630293,1716259843947,-887.10887347,0.00018435,2]
[327631052,1716259967481,24900.0,0.00015493,2]
[327631054,1716260013827,3373.78266972,0.00015493,2]
[327631055,1716260016540,155.0,0.00015493,2]
[327631056,1716260027827,230.46710513,0.00015493,2]
[327631059,1716260030532,155.04367162,0.00015493,2]
[327631060,1716260090835,1151.33496091,9.999e-05,2]
[327631062,1716260326590,550.85396294,9.999e-05,2]
[327631063,1716260337176,1717.62384614,9.999e-05,2]
[327631064,1716260346959,430.72563527,0.00015986,2]
[327631066,1716260486120,176.40263556,0.00015983,2]
[327631068,1716260616734,1151.33496091,9.999e-05,2]
[327631069,1716260618788,24900.0,0.00015211,2]
[327631071,1716260730383,943.0,0.00023,30]
[327631072,1716260749618,-1151.33496091,0.00016066,2]
[327631073,1716260749641,-9401.55826787,0.00016067,2]
[327631074,1716260749665,-1717.62384614,0.00016068,2]
[327631075,1716260749688,-550.85396294,0.00016068,2]
[327631076,1716260749712,-59417.06053021,0.00016069,2]
[327631077,1716260749735,-7490.31744215,0.00016086,3]
[327631078,1716260749759,-1250.33222928,0.00016086,2]
[327631079,1716260749782,-19020.9187605,0.00016186,2]
[327631080,1716260819357,500.0,0.0002651,120]
[327631093,1716260839970,500.0,0.0002651,120]
[327631094,1716260851388,500.0,0.0002651,120]
[327631129,1716261033521,-212.79119198,0.00016185,2]
[327631130,1716261033531,-605.25426453,0.00016185,2]
[327631132,1716261033541,-1718.77003552,0.00016185,2]
[327631133,1716261033551,-988.5710176,0.00016185,2]
[327631135,1716261033561,-2280.3307973,0.00016185,2]
[327631136,1716261033570,-16601.80905825,0.00016186,2]
[327631138,1716261033580,-155.03825942,0.00016286,2]
[327631140,1716261033590,-2144.9916358,0.00016288,2]
[327631141,1716261033600,-19294.67838121,0.00016494,2]
[327631143,1716261033610,-286.61863905,0.00016494,2]
[327631145,1716261033619,-155.0,0.000165,2]
[327631147,1716261033628,-440.57857039,0.00017511,2]
[327631149,1716261033638,-417.32360569,0.00018253,2]
[327631150,1716261033647,-4224.07535635,0.0001832,2]
[327631152,1716261033657,-156.0029287,0.000189,2]
[327631153,1716261033667,-162.560857,0.00019,2]
[327631154,1716261033676,-169.7072361,0.00019178,2]
[327631155,1716261033685,-168.148609,0.00019178,2]
[327631156,1716261033695,-176.40263555,0.00019474,2]
[327631157,1716261033704,-236.56094657,0.00019568,2]
[327631158,1716261033714,-231.32930537,0.00019568,2]
[327631159,1716261033725,-181.25970541,0.00019568,2]
[327631160,1716261033734,-1320.70670575,0.00019569,2]
[327631161,1716261033744,-909.25169157,0.0001957,2]
[327631162,1716261033753,-10485.16186561,0.00019571,2]
[327631163,1716261033763,-8385.63511976,0.0001986,7]
[327631164,1716261033772,-7415.23889232,0.0002,2]
[327631165,1716261033781,-155.0,0.0002,2]
[327631166,1716261033792,-180.08352177,0.0002,2]
[327631167,1716261033802,-281.33101558,0.00020912,2]
[327631168,1716261033811,-261.10136921,0.00020912,2]
[327631169,1716261033820,-1338.92794901,0.00020912,2]
[327631170,1716261033830,-1097.15940096,0.00020912,2]
[327631171,1716261033839,-349.26632079,0.00020912,2]
[327631172,1716261033848,-528.43613852,0.00020912,2]
[327631173,1716261033857,-1422.35770959,0.00020912,2]
[327631174,1716261033867,-194.83792219,0.00020912,2]
[327631175,1716261033875,-309.65937468,0.00020912,2]
[327631176,1716261033884,-1596.57048682,0.00020912,2]
[327631177,1716261033894,-285.61810326,0.00020912,2]
[327631178,1716261033903,-774.27960681,0.00020912,2]
[327631179,1716261033912,-442.83480005,0.00020912,2]
[327631180,1716261033922,-383.02279185,0.00020913,2]
[327631181,1716261033932,-714.95971981,0.00020913,2]
[327631182,1716261033941,-275.67960946,0.00020913,2]
[327631183,1716261033950,-38.44871732,0.00020913,2]
[327631187,1716261038661,-116.63392748,0.00020913,2]
[327631191,1716261038672,-168.24944723,0.00020913,2]
[327631194,1716261038682,-459.65143017,0.00020913,2]
[327631197,1716261038692,-280.0,0.00021,2]
[327631201,1716261038702,-3029.9810156,0.00021918,2]
[327631204,1716261038712,-166.666666,0.00021918,2]
[327631207,1716261038722,-159.70333977,0.00022,2]
[327631210,1716261038731,-166.666666,0.00022431,2]
[327631213,1716261038741,-166.666666,0.00022944,2]
[327631217,1716261038751,-155.17983449,0.00023,2]
[327631220,1716261038763,-166.666666,0.00023456,2]
[327631223,1716261038772,-156.0029287,0.000239,2]
[327631226,1716261038781,-166.666666,0.00023969,2]
[327631229,1716261038791,-187.1961905,0.00024,2]
[327631232,1716261038800,-206.89212,0.00024384,2]
[327631235,1716261038811,-166.666666,0.00024482,2]
[327631238,1716261038820,-380.0,0.00024658,2]
[327631241,1716261038830,-400.71262343,0.00025,2]
[327631244,1716261038840,-155.19951538,0.00025,14]
[327631247,1716261038850,-167.4232435,0.00025,2]
[327631250,1716261038860,-155.0,0.0002651,2]
[327631253,1716261038870,-1136.59312053,0.0002739,2]
[327631256,1716261038880,-1000.0,0.00027397,2]
[327631258,1716261038890,-1000.0,0.00027397,2]
[327631260,1716261038900,-1000.0,0.00027397,2]
[327631262,1716261038910,-1000.0,0.00027397,2]
[327631264,1716261038920,-500.0,0.00027397,2]
[327631266,1716261038929,-500.0,0.00027397,2]
[327631268,1716261038939,-500.0,0.00027397,2]
[327631270,1716261038948,-500.0,0.00027397,2]
[327631272,1716261038958,-500.0,0.00027397,2]
[327631274,1716261038968,-500.0,0.00027397,2]
[327631276,1716261038978,-500.0,0.00027397,2]
[327631278,1716261038987,-500.0,0.00027397,2]
[327631280,1716261038997,-500.0,0.00027397,2]
[327631282,1716261039007,-500.0,0.00027397,2]
[327631284,1716261039018,-500.0,0.00027397,2]
[327631286,1716261039028,-500.0,0.00027397,2]
[327631288,1716261039039,-500.0,0.00027397,2]
[327631290,1716261039049,-500.0,0.00027397,2]
[327631292,1716261039060,-500.0,0.00027397,2]
[327631294,1716261039073,-500.0,0.00027397,2]
[327631296,1716261039084,-183.31624797,0.00027397,2]
[327631298,1716261039098,-316.68375203,0.00027397,2]
[327631300,1716261039109,-500.0,0.00027397,2]
[327631302,1716261039121,-500.0,0.00027397,2]
[327631304,1716261039131,-418.73972825,0.00027397,2]
[327631306,1716261039140,-190.5310777,0.00027671,2]
[327631308,1716261039152,-221.60537528,0.00028,2]
[327631310,1716261039161,-1236.54086359,0.0003,10]
[327631335,1716261039396,-206.89212,0.0003031,2]
[327631337,1716261039405,-320.18671274,0.00031,30]
[327631339,1716261039415,-1250.33222923,0.00031461,2]
[327631341,1716261039425,-1000.0,0.00031463,2]
[327631343,1716261039434,-176.40263555,0.00032975,2]
[327631345,1716261039444,-210.82174763,0.00035,4]
[327631347,1716261039454,-1960.40581659,0.00035,2]
[327631350,1716261039466,-931.54539726,0.00035,2]
[327632086,1716261044507,-412.72625578,0.00025081,2]
[327632088,1716261044518,-412.72625578,0.00025427,2]
[327632090,1716261044527,-412.72625578,0.00025564,2]
[327632092,1716261044536,-3959.34296008,0.0002571,2]
[327632095,1716261044546,-3959.34296008,0.00025989,2]
[327632096,1716261044555,-412.72625578,0.00026004,2]
[327632099,1716261044565,-412.72625578,0.00026101,2]
[327632101,1716261044574,-3959.34296008,0.00026214,2]
[327632102,1716261044584,-412.72625578,0.00026417,2]
[327632106,1716261044593,-3959.34296008,0.00026492,2]
[327632108,1716261044603,-412.72625578,0.00026714,2]
[327632111,1716261044611,-3959.34296008,0.00026794,2]
[327632114,1716261044620,-412.72625578,0.00026992,2]
[327632116,1716261044630,-3959.34296008,0.00027041,2]
[327632118,1716261044639,-3959.34296008,0.00027334,2]
[327632120,1716261044648,-108.04878615,0.00035,2]
[327632123,1716261044657,-178.178128,0.00035616,120]
[327632125,1716261044666,-206.89212,0.00036236,2]
[327632127,1716261044675,-1708.21899577,0.00037,2]
[327632128,1716261044685,-1333.33333333,0.00038,7]
[327632131,1716261044694,-1333.33333333,0.00038,7]
[327632133,1716261044703,-1250.33222923,0.00039149,2]
[327632134,1716261044713,-200.0,0.00039284,120]
[327632136,1716261044722,-300.29844316,0.000399,2]
[327632138,1716261044731,-299.99,0.000399,3]
[327632140,1716261044740,-271.58860814,0.0004,4]
[327632142,1716261044750,-939.67435278,0.0004028,11]
[327632145,1716261044760,-1454.54545455,0.0004028,11]
[327632147,1716261044770,-336.660124,0.00040455,2]
[327632149,1716261044779,-204.4918902,0.00040455,2]
[327632150,1716261044787,-495.9703732,0.00041096,31]
[327632152,1716261044797,-153.0,0.00041276,2]
[327632154,1716261044806,-153.0,0.00041276,2]
[327632156,1716261044817,-153.0,0.00041276,2]
[327632159,1716261044826,-153.0,0.00041276,2]
[327632161,1716261044835,-153.0,0.00041276,2]
[327632163,1716261044844,-153.0,0.00041276,2]
[327632165,1716261044854,-153.0,0.00041276,2]
[327632167,1716261044863,-306.0,0.00041276,2]
[327632169,1716261044873,-204.4918902,0.00041276,2]
[327632171,1716261044882,-153.0,0.00041276,2]
[327632173,1716261044891,-204.4918902,0.00041276,2]
[327632175,1716261044901,-204.4918902,0.00041276,2]
[327632177,1716261044910,-153.0,0.00041276,2]
[327632178,1716261044919,-153.0,0.00041276,2]
[327632180,1716261044928,-204.4918902,0.00041276,2]
[327632183,1716261044938,-204.4918902,0.00041276,2]
[327632185,1716261044948,-153.0,0.00041276,2]
[327632187,1716261044957,-204.4918902,0.00041276,2]
[327632189,1716261044966,-153.0,0.00041276,2]
[327632191,1716261044975,-153.0,0.00041276,2]
[327632193,1716261044984,-204.4918902,0.00041276,2]
[327632195,1716261044993,-153.0,0.00041276,2]
[327632197,1716261045003,-204.4918902,0.00041276,2]
[327632199,1716261045012,-204.4918902,0.00041276,2]
[327632201,1716261045022,-153.0,0.00041276,2]
[327632203,1716261045031,-153.0,0.00041276,2]
[327632205,1716261045041,-204.4918902,0.00041276,2]
[327632207,1716261045050,-204.4918902,0.00041276,2]
[327632209,1716261045059,-153.0,0.00041276,2]
[327632211,1716261045072,-153.0,0.00041276,2]
[327632213,1716261045081,-204.4918902,0.00041276,2]
[327632215,1716261045090,-153.0,0.00041276,2]
[327632217,1716261045100,-204.4918902,0.00041276,2]
[327632219,1716261045111,-153.0,0.00041276,2]
[327632221,1716261045120,-204.4918902,0.00041276,2]
[327632223,1716261045129,-204.4918902,0.00041276,2]
[327632224,1716261045140,-153.0,0.00041276,2]
[327632226,1716261045149,-204.4918902,0.00041276,2]
[327632228,1716261045159,-153.0,0.00041276,2]
[327632230,1716261045168,-308.8772826,0.00041276,2]
[327632233,1716261045178,-204.4918902,0.00041276,2]
[327632234,1716261045187,-204.4918902,0.00041276,2]
[327632237,1716261045197,-153.0,0.00041276,2]
[327632239,1716261045206,-204.4918902,0.00041276,2]
[327632240,1716261045215,-153.0,0.00041276,2]
[327632243,1716261045224,-204.4918902,0.00041276,2]
[327632244,1716261045234,-153.0,0.00041276,2]
[327632247,1716261045243,-153.0,0.00041276,2]
[327632248,1716261045252,-250.6791612,0.00041276,2]
[327632251,1716261045262,-153.0,0.00041276,2]
[327632253,1716261045271,-204.4918902,0.00041276,2]
[327632254,1716261045282,-153.0,0.00041276,2]
[327632257,1716261045293,-204.4918902,0.00041276,2]
[327632259,1716261045302,-204.4918902,0.00041276,2]
[327632261,1716261045311,-153.0,0.00041276,2]
[327632263,1716261045321,-153.0,0.00041276,2]
[327632265,1716261045330,-153.0,0.00041276,2]
[327632266,1716261045339,-204.4918902,0.00041277,2]
[327632269,1716261045348,-204.4918902,0.00041277,2]
[327632271,1716261045358,-204.4918902,0.00041277,2]
[327632273,1716261045367,-204.4918902,0.00041277,2]
[327632275,1716261045377,-204.4918902,0.00041277,2]
[327632277,1716261045386,-204.4918902,0.00041277,2]
[327632279,1716261045395,-204.4918902,0.00041277,2]
[327632281,1716261045404,-204.4918902,0.00041277,2]
[327632283,1716261045413,-203.9648086,0.00041277,2]
[327632285,1716261045422,-153.0,0.00041896,2]
[327632286,1716261045431,-153.0,0.00041896,2]
[327632289,1716261045440,-153.0,0.00041896,2]
[327632291,1716261045450,-809.0,0.00042,44]
[327632292,1716261045459,-1000.0,0.00042097,2]
[327632295,1716261045468,-306.0,0.00042098,2]
[327632296,1716261045478,-206.89212,0.00042163,2]
[327632298,1716261045487,-155.0,0.00042465,7]
[327632301,1716261045496,-500.0,0.00042466,2]
[327632303,1716261045506,-501.26,0.00042466,2]
[327632305,1716261045517,-2274.18,0.0004252,3]
[327632307,1716261045526,-2729.01,0.0004253,3]
[327632309,1716261045537,-1454.54545455,0.0004256,11]
[327632311,1716261045546,-216.0,0.00044383,66]
[327632313,1716261045556,-151.0,0.0004444,2]
[327632315,1716261045565,-1575.75757576,0.0004484,15]
[327632317,1716261045574,-3745.15872107,0.00045,3]
[327632319,1716261045583,-155.0,0.00045,2]
[327632321,1716261045592,-5492.21983207,0.00045,4]
[327632323,1716261045602,-155.0,0.00045,5]
[327632325,1716261045611,-6143.44738724,0.00045,120]
[327632327,1716261045621,-151.0,0.00045,120]
[327632329,1716261045630,-191.07212107,0.000459,4]
[327632331,1716261045639,-151.0,0.00045973,120]
[327632333,1716261045648,-212.52,0.00046434,30]
[327632335,1716261045658,-255.02,0.00046444,30]
[327632337,1716261045667,-367.23,0.00046454,30]
[327632339,1716261045675,-306.02,0.00046454,30]
[327632341,1716261045684,-440.68,0.00046464,30]
[327632343,1716261045694,-1895.15,0.00046465,3]
[327632345,1716261045703,-1000.0,0.00046474,2]
[327632347,1716261045712,-1000.0,0.00046474,2]
[327632348,1716261045721,-176.40263555,0.00046475,2]
[327632349,1716261045730,-88888.0,0.00046475,5]
[327632350,1716261045739,-1000.0,0.00046571,2]
[327632351,1716261045748,-12168.41888284,0.00046572,2]
[327632352,1716261045757,-1000.0,0.00046574,2]
[327632353,1716261045767,-1000.0,0.00046574,2]
[327632354,1716261045926,-1000.0,0.00046574,2]
[327632355,1716261045936,-1000.0,0.00046574,2]
[327632356,1716261045945,-1000.0,0.00046574,2]
[327632357,1716261045954,-3329.77387578,0.00046575,3]
[327632358,1716261045964,-500.0,0.00046575,40]
[327632359,1716261045973,-504.73453657,0.00046575,40]
[327632360,1716261045982,-500.0,0.00046575,40]
[327632361,1716261045992,-500.0,0.00046575,40]
[327632362,1716261046002,-151.0,0.00046575,7]
[327632363,1716261046012,-573.31026929,0.00046575,40]
[327632364,1716261046022,-500.0,0.00046575,40]
[327632365,1716261046031,-663.57,0.00046575,40]
[327632366,1716261046040,-500.0,0.00046575,40]
[327632367,1716261046049,-574.74408215,0.00046575,40]
[327632368,1716261046059,-616.2,0.00046575,40]
[327632369,1716261046074,-500.0,0.00046575,40]
[327632370,1716261046083,-500.0,0.00046575,40]
[327632371,1716261046093,-500.0,0.00046575,40]
[327632372,1716261046102,-500.0,0.00046575,40]
[327632373,1716261046113,-218.529139,0.00046575,7]
[327632374,1716261046122,-500.0,0.00046575,40]
[327632375,1716261046132,-500.0,0.00046575,40]
[327632376,1716261046142,-500.0,0.00046575,40]
[327632378,1716261046154,-483.86245262,0.00046575,40]
[327632380,1716261046163,-500.0,0.00046575,40]
[327632382,1716261046173,-500.0,0.00046575,40]
[327632384,1716261046182,-500.0,0.00046575,40]
[327632385,1716261046192,-201.43803478,0.00046575,40]
[327632386,1716261046202,-500.0,0.00046575,40]
[327632387,1716261046212,-500.0,0.00046575,40]
[327632388,1716261046222,-500.0,0.00046575,40]
[327632389,1716261046231,-500.0,0.00046575,40]
[327632390,1716261046241,-500.0,0.00046575,40]
[327632392,1716261046250,-500.0,0.00046575,40]
[327632393,1716261046259,-500.0,0.00046575,40]
[327632394,1716261046270,-500.0,0.00046575,40]
[327632395,1716261046280,-500.0,0.00046575,40]
[327632396,1716261046289,-524.49356098,0.00046575,40]
[327632397,1716261046298,-500.0,0.00046575,40]
[327632398,1716261046307,-500.0,0.00046575,40]
[327632399,1716261046317,-500.0,0.00046575,40]
[327632400,1716261046326,-500.0,0.00046575,40]
[327632401,1716261046335,-500.0,0.00046575,40]
[327632402,1716261046345,-500.0,0.00046575,40]
[327632403,1716261046354,-500.0,0.00046575,40]